Cogmind - Beta 13 @@@ ROGUE MODE // 2024.04.06 @ 21:25:23 Player: demon Result: Destroyed by G-47 Trooper with Particle Gun Performance ------------- Evolutions (3) 1500 Regions Visited (6) 1200 Robots Destroyed (36) 180 Value Destroyed (1308) 1308 Prototype IDs (1) 20 Alien Tech Used (0) 0 Bonus (592) 592 TOTAL SCORE: 4800 Bonus ------- Pacifist 270 High Alert Combat Kills 22 Aligned with FarCom 300 Cogmind --------- Core Integrity 0/700 Matter 51/300 Energy 100/100 System Corruption 0% Temperature Hot (200) Movement Core (450) Ox8 Location -7/Factory Parts ------- > --- POWER (2) -------- (None) > --- PROPULSION (3) --- (None) > --- UTILITY (4) ------ Small Storage Unit Hardened Heavy Armor Plating Hacking Suite > --- WEAPON (4) ------- (None) > --- INVENTORY (8) ---- Advanced Targeting Computer Particle Charger Recalibrator Recalibrator Peak State ------------ > --- POWER ------------ Light Nuclear Core Light Nuclear Core > --- PROPULSION ------- Compact Wheel Compact Wheel Compact Wheel > --- UTILITY ---------- Small Storage Unit Advanced Targeting Computer System Shield Recalibrator > --- WEAPON ----------- Heavy Particle Cannon Assault Rifle AWS/Gauss > --- INVENTORY -------- Advanced Targeting Computer Advanced Targeting Computer Particle Charger Hardened Medium Armor Plating Hardened Heavy Armor Plating Remote Datajack [Rating: 42] Favorites ----------- Power Ion Engine Engine Ion Engine Power Core Light Nuclear Core Propulsion Compact Wheel Wheel Compact Wheel Utility Small Storage Unit Device Recalibrator Storage Small Storage Unit Processor Advanced Targeting Computer Hackware System Shield Protection Hardened Medium Armor Plating Weapon Assault Rifle Energy Gun Particle Gun Energy Cannon Heavy Particle Cannon Ballistic Gun Assault Rifle Ballistic Cannon Advanced Assault Cannon Special Weapon Remote Datajack Build | -11 -10 -10 -10 -9 -8 -7 ------- Run | Yrd Mat Min Exi Min Mat Fac Slots Evolved 6 | . . . . . 4 2 Power 1 | . . . . . . 1 Propulsion 1 | . . . . . 1 . Utility 2 | . . . . . 1 1 Weapon 2 | . . . . . 2 . Parts Attached 37 | 7 . . 1 . 12 17 Power 8 | 1 . . . . 2 5 Engine 3 | 1 . . . . 1 1 Core 5 | . . . . . 1 4 Reactor . | . . . . . . . Propulsion 5 | 3 . . . . 2 . Treads . | . . . . . . . Leg . | . . . . . . . Wheel 5 | 3 . . . . 2 . Hover . | . . . . . . . Flight . | . . . . . . . Utility 12 | 1 . . . . 5 6 Device 1 | . . . . . . 1 Storage 2 | 1 . . . . . 1 Processor 4 | . . . . . 2 2 Hackware 2 | . . . . . 1 1 Protection 3 | . . . . . 2 1 Artifact . | . . . . . . . Weapon 12 | 2 . . 1 . 3 6 Energy Gun 1 | . . . . . 1 . Energy Cannon 3 | . . . . . . 3 Ballistic Gun 5 | 2 . . 1 . 2 . Ballistic Cannon 2 | . . . . . . 2 Launcher . | . . . . . . . Special Weapon 1 | . . . . . . 1 Impact Weapon . | . . . . . . . Slashing Weapon . | . . . . . . . Piercing Weapon . | . . . . . . . Special Melee Weapon . | . . . . . . . Unidentified Prototypes 1 | . . . 1 . . . Parts Lost 15 | . . . . . 3 12 Power 3 | . . . . . . 3 Propulsion 4 | . . . . . 1 3 Utility 2 | . . . . . 1 1 Weapon 6 | . . . . . 1 5 Highest Loss Streak 11 | . . . . . 2 11 To Critical Strikes . | . . . . . . . Average Slot Usage (%) 82 | . 85 85 78 71 85 86 Engine 9 | . 14 14 14 14 8 5 Core 2 | . . . . . . 8 Wheel 23 | . 28 28 28 28 23 17 Storage 10 | . 14 14 14 14 9 7 Processor 2 | . . . . . 2 6 Hackware 4 | . . . . . . 12 Protection 4 | . . . . . 14 . Energy Cannon 2 | . . . . . . 7 Ballistic Gun 19 | . 28 28 21 14 26 10 Naked Turns . | . . . . . . . Heaviest Build 40 | 13 13 13 20 20 33 40 Greatest Support 48 | 32 32 32 32 32 48 48 Greatest Overweight (x) 9 | . . . . . 1 9 Average Overweight (x) . | . . . . . . . Largest Inventory Capacity 8 | 8 8 8 8 8 8 8 Average Capacity 7 | 6 8 8 8 8 8 8 Most Carried 8 | 5 3 3 7 5 8 8 Average Carried 5 | 2 2 3 3 5 6 7 Final Capacity 8 | 8 8 8 8 8 8 8 Final Carried 5 | 2 3 3 5 5 5 4 Class Distribution -------------------- 39% | Mutant 21% | Hacker-Skirmisher 20% | Skirmisher 18% | Tank Dominant Class ---------------- Mutant | -10/Materials Mutant | -10/Mines Mutant | -10/Exiles Mutant | -9/Mines Tank | -8/Materials Hacker-Skirmisher | -7/Factory Resources | -11 -10 -10 -10 -9 -8 -7 ----------- Run | Yrd Mat Min Exi Min Mat Fac Matter Collected 651 | 239 35 . . . 213 164 Remotely . | . . . . . . . Salvage Created 1449 | . . . . . 759 690 Parts 83 | . . . . . 48 35 Haulers Intercepted . | . . . . . . . Recyclers Shooed . | . . . . . . . Parts Field Recycled . | . . . . . . . Retrieved Matter . | . . . . . . . Parts Self-Destructed . | . . . . . . . Prevented . | . . . . . . . Kills | -11 -10 -10 -10 -9 -8 -7 ------- Run | Yrd Mat Min Exi Min Mat Fac Combat Hostiles Destroyed 28 | . . . . . 15 13 Guns 25 | . . . . . 15 10 Cannons 3 | . . . . . . 3 Classes Destroyed 10 | . . . . . 7 3 Builder 1 | . . . . . 1 . Tunneler 1 | . . . . . 1 . Recycler 1 | . . . . . . 1 Operator 1 | . . . . . . 1 Watcher 4 | . . . . . 3 1 Swarmer 8 | . . . . . 4 4 Grunt 16 | . . . . . 8 8 Sentry 1 | . . . . . . 1 Hunter 2 | . . . . . 2 . Heavy 1 | . . . . . 1 . Best Kill Streak 7 | . . . . . 7 7 Combat Bots Only 7 | . . . . . 7 7 Max Kills in Single Turn 2 | . . . . . 2 1 Gunslinging . | . . . . . . . Exploded . | . . . . . . . Melee . | . . . . . . . Uniques/NPCs Destroyed . | . . . . . . . Combat | -11 -10 -10 -10 -9 -8 -7 -------- Run | Yrd Mat Min Exi Min Mat Fac Hostile Shots Fired 184 | . . . . . 40 144 Missed 47 | . . . . . 9 38 Damage Taken 2608 | . . . . . 607 2001 Core 739 | . . . . . 38 701 Absorbed by Shields . | . . . . . . . Redirected to Shielding 11 | . . . . . 11 . Core Remaining (%) 97 | 100 . . . 100 93 . Volleys Fired 51 | . 1 . . . 23 27 Largest 3 | . 2 . . . 2 3 Hottest 183 | . 40 . . . 40 183 Shots Fired 183 | . 2 . . . 109 72 Gun 146 | . 2 . . . 109 35 Cannon 35 | . . . . . . 35 Launcher . | . . . . . . . Special 2 | . . . . . . 2 Kinetic 162 | . 2 . . . 109 51 Thermal 19 | . . . . . . 19 Explosive . | . . . . . . . Electromagnetic . | . . . . . . . Robot Hit Streak 16 | . . . . . 15 16 Robot Miss Streak 4 | . 2 . . . 3 4 Penetration Max . | . . . . . . . Secondary Targets 1 | . . . . . 1 . Max Gunslinging Chain 1 | . . . . . 1 . Autonomous 92 | . . . . . 65 27 Shots Hit Robots 139 | . . . . . 87 52 Core Hits 59 | . . . . . 34 25 Critical Kills . | . . . . . . . Critical Parts Destroyed . | . . . . . . . Critical Strikes 1 | . . . . . . 1 Blast 1 | . . . . . . 1 Melee Attacks . | . . . . . . . Impact . | . . . . . . . Slashing . | . . . . . . . Piercing . | . . . . . . . Sneak Attacks . | . . . . . . . Combat Hostiles . | . . . . . . . Follow-up Attacks . | . . . . . . . Damage Inflicted 3810 | . . . . . 2327 1483 Guns 2861 | . . . . . 2017 844 Cannons 632 | . . . . . . 632 Explosions 301 | . . . . . 301 . Melee . | . . . . . . . Ramming 16 | . . . . . 9 7 Kinetic 3178 | . . . . . 2017 1161 Thermal 315 | . . . . . . 315 Explosive 301 | . . . . . 301 . Electromagnetic . | . . . . . . . Impact . | . . . . . . . Slashing . | . . . . . . . Piercing . | . . . . . . . Highest Corruption 3 | . . . . . 3 . Average Corruption 2 | . . . . . 2 . Corruption Purged . | . . . . . . . Corruption Blocked . | . . . . . . . Effects 2 | . . . . . 2 . Message Errors 2 | . . . . . 2 . Overload Shots . | . . . . . . . Overflow Damage 38 | . . . . . 38 . Projectiles . | . . . . . . . Explosions 38 | . . . . . 38 . Melee . | . . . . . . . Knockbacks 2 | . . . . . . 2 Impact . | . . . . . . . Kinetic 2 | . . . . . . 2 Secondary . | . . . . . . . Self-Inflicted Damage 7 | . . . . . 4 3 Shots . | . . . . . . . Rammed 2 | . . . . . 1 1 Targets Rammed 2 | . . . . . 1 1 Kicked . | . . . . . . . Crushed . | . . . . . . . Highest Temperature 677 | . . . . . 17 677 Average Temperature 269 | . . . . . 8 296 Received Heat Transfer 1086 | . . . . . 135 951 Effects 25 | . . . . . . 25 Shutdowns 6 | . . . . . . 6 Interference 3 | . . . . . . 3 Matter Decay 4 | . . . . . . 4 Short Circuit 2 | . . . . . . 2 Damage (minor) 3 | . . . . . . 3 Damage (major) 4 | . . . . . . 4 Damage (core) 3 | . . . . . . 3 Siege Activations . | . . . . . . . Robots Corrupted . | . . . . . . . Combat Hostiles . | . . . . . . . Parts Fried . | . . . . . . . Impact Corruptions . | . . . . . . . Robots Melted . | . . . . . . . Combat Hostiles . | . . . . . . . Parts Melted . | . . . . . . . Heat Transferred 481 | . . . . . . 481 Parts Sabotaged . | . . . . . . . Parts Stolen . | . . . . . . . Parts Stripped . | . . . . . . . Power Chain Reactions . | . . . . . . . Alert | -11 -10 -10 -10 -9 -8 -7 ------- Run | Yrd Mat Min Exi Min Mat Fac Peak Influence 463 | . 35 13 . . 357 463 Initial 162 | . . 13 . . . 162 Average 115 | . 5 13 . . 76 241 Maximum Alert Level 2 | . . . . . 1 2 Low Security (%) 71 | 100 100 100 . 100 80 39 Level 1 27 | . . . . . 19 57 Level 2 1 | . . . . . . 3 Level 3 . | . . . . . . . Level 4 . | . . . . . . . Level 5 . | . . . . . . . High Security . | . . . . . . . Max Security . | . . . . . . . Squads Dispatched 8 | . 2 . . . 4 2 Investigation 3 | . . . . . 3 . Extermination . | . . . . . . . Reinforcement 5 | . 2 . . . 1 2 Assault . | . . . . . . . Garrison . | . . . . . . . Intercept . | . . . . . . . Searches Triggered . | . . . . . . . Construction Impeded 1 | . . . . . . 1 Haulers Reinforced . | . . . . . . . Active Scanning Responses . | . . . . . . . Cargo Convoy Interrupts . | . . . . . . . Stealth | -11 -10 -10 -10 -9 -8 -7 --------- Run | Yrd Mat Min Exi Min Mat Fac Distress Signals . | . . . . . . . Communications Jammed . | . . . . . . . Distress Signals . | . . . . . . . Times Spotted 41 | . 2 . . . 17 22 Peak Tracking Total 5 | . 3 . . . 4 5 Tactical Retreats 2 | . 1 . . . . 1 Traps | -11 -10 -10 -10 -9 -8 -7 ------- Run | Yrd Mat Min Exi Min Mat Fac Traps Triggered 7 | . . . . . 4 3 Indirectly . | . . . . . . . Trap Hack Attempts . | . . . . . . . Triggered . | . . . . . . . Disarmed . | . . . . . . . Reprogrammed . | . . . . . . . Reused . | . . . . . . . Traps Extracted . | . . . . . . . Installed . | . . . . . . . Triggered . | . . . . . . . Machines | -11 -10 -10 -10 -9 -8 -7 ---------- Run | Yrd Mat Min Exi Min Mat Fac Machines Disabled 4 | . . . . . 2 2 Max in Single Turn 1 | . . . . . 1 1 Machines Repaired . | . . . . . . . Machines Dismantled . | . . . . . . . Machines Sabotaged . | . . . . . . . Overloaded Fab Kills . | . . . . . . . Hacking | -11 -10 -10 -10 -9 -8 -7 --------- Run | Yrd Mat Min Exi Min Mat Fac Machines Accessed 12 | . 2 . 4 . 2 4 Terminals 6 | . 2 . . . 1 3 Fabricators 1 | . . . . . . 1 Repair Stations . | . . . . . . . Recycling Units . | . . . . . . . Scanalyzers 1 | . . . . . 1 . Garrison Access . | . . . . . . . Total Hacks 68 | . 6 . 49 . 5 8 Successful 61 | . 5 . 49 . 5 2 Failed 7 | . 1 . . . . 6 Catastrophic 1 | . . . . . . 1 Database Lockouts . | . . . . . . . Manual 1 | . . . 1 . . . Terminals 16 | . 6 . . . 3 7 Fabricators 1 | . . . . . . 1 Repair Stations . | . . . . . . . Recycling Units . | . . . . . . . Scanalyzers 2 | . . . . . 2 . Garrison Access . | . . . . . . . Terminal Hacks 59 | . 5 . 49 . 3 2 Record 50 | . 1 . 49 . . . Open DSF 1 | . . . . . . 1 Alert Level 3 | . 1 . . . 1 1 Unreport Threat 1 | . . . . . 1 . Dispatch Records 2 | . 1 . . . 1 . Recall Reinforcements 1 | . 1 . . . . . Hauler Manifests 1 | . 1 . . . . . Fabricator Hacks . | . . . . . . . Repair Station Hacks . | . . . . . . . Recycling Unit Hacks . | . . . . . . . Scanalyzer 2 | . . . . . 2 . Insert Component 1 | . . . . . 1 . Analyze 1 | . . . . . 1 . Garrison Access Hacks . | . . . . . . . Unauthorized Hacks . | . . . . . . . Terminals . | . . . . . . . Fabricators . | . . . . . . . Repair Stations . | . . . . . . . Recycling Units . | . . . . . . . Scanalyzers . | . . . . . . . Garrison Access . | . . . . . . . Data Cores Recovered . | . . . . . . . Used . | . . . . . . . Hacking Detections 5 | . 1 . . . 1 3 Full Trace Events 1 | . . . . . 1 . Feedback Events . | . . . . . . . Feedback Blocked . | . . . . . . . Robot Schematics Acquired . | . . . . . . . Robots Built . | . . . . . . . Authchips . | . . . . . . . Time . | . . . . . . . Total Robot Build Rating . | . . . . . . . Part Schematics Acquired 1 | . . . . . 1 . Parts Built . | . . . . . . . Authchips . | . . . . . . . Time . | . . . . . . . Total Part Build Rating . | . . . . . . . Parts Repaired . | . . . . . . . Time . | . . . . . . . Parts Recycled . | . . . . . . . Recycled Matter . | . . . . . . . Retrieved Matter . | . . . . . . . Retrieved Components . | . . . . . . . Parts Scanalyzed 1 | . . . . . 1 . Part Schematics Acquired 1 | . . . . . 1 . Parts Damaged 1 | . . . . . 1 . Bothacking | -11 -10 -10 -10 -9 -8 -7 ------------ Run | Yrd Mat Min Exi Min Mat Fac Used RIF Installer . | . . . . . . . Robots Hacked . | . . . . . . . Non-combat . | . . . . . . . Combat . | . . . . . . . Robot Hacks Applied . | . . . . . . . Relay Couplers Released . | . . . . . . . Fabnet Peak Effective % . | . . . . . . . Robots Rewired . | . . . . . . . Allies Hacked . | . . . . . . . Hacks Repelled . | . . . . . . . Allies | -11 -10 -10 -10 -9 -8 -7 -------- Run | Yrd Mat Min Exi Min Mat Fac Total Allies . | . . . . . . . Largest Group . | . . . . . . . Highest-Rated Group . | . . . . . . . Highest-Rated Ally . | . . . . . . . Total Orders . | . . . . . . . Ally Attacks . | . . . . . . . Total Damage . | . . . . . . . Kills . | . . . . . . . Allies Corrupted . | . . . . . . . Allies Melted . | . . . . . . . Intel | -11 -10 -10 -10 -9 -8 -7 ------- Run | Yrd Mat Min Exi Min Mat Fac Robot Analysis Total . | . . . . . . . Derelict Logs Recovered 3 | . . 1 . 2 . . Drone Launches . | . . . . . . . Drone Recoveries . | . . . . . . . Exploration | -11 -10 -10 -10 -9 -8 -7 ------------- Run | Yrd Mat Min Exi Min Mat Fac Turns Passed 2383 | 49 107 111 310 324 735 747 Spaces Moved 1941 | 36 104 104 307 301 586 503 Core 5 | 4 . . . . . 1 Treads . | . . . . . . . Legs . | . . . . . . . Wheels 1936 | 32 104 104 307 301 586 502 Hover . | . . . . . . . Flight . | . . . . . . . Fastest Speed 50 | 50 100 100 100 100 100 100 Average Speed 102 | 94 100 100 100 100 103 107 Slowest Speed 500 | 100 100 100 100 100 115 500 Overloaded Moves . | . . . . . . . Propulsion Burnouts . | . . . . . . . Robots Hopped . | . . . . . . . Cave-ins Triggered . | . . . . . . . Exploration Rate (%) 27 | 3 21 32 53 33 38 15 Regions Visited 6 Branch Regions 3 Pre-discovered Areas 1 | . . . 1 . . . Known Exits Taken 2 | . . . . 1 1 . Unknown Exits Taken 4 | 1 1 1 1 . . . Scrap Searched 1 | . . 1 . . . . Spaces Dug . | . . . . . . . Terrain Destroyed 70 | . . . . . 65 5 Melee . | . . . . . . . Projectile 35 | . . . . . 30 5 AOE 35 | . . . . . 35 . Terrain Rammed . | . . . . . . . Walls Destroyed . | . . . . . . . Machines Disabled . | . . . . . . . Actions | -11 -10 -10 -10 -9 -8 -7 --------- Run | Yrd Mat Min Exi Min Mat Fac Total 2248 | 51 105 111 310 324 675 672 Wait 154 | . . 8 . 24 30 92 Move 1935 | 35 103 103 306 300 585 503 Hop . | . . . . . . . Pick Up 46 | 8 1 . 1 . 16 20 Fast Attach . | . . . . . . . Attach 31 | 7 . . 1 . 10 13 Detach 3 | 1 . . 2 . . . Swap 6 | . . . . . 2 4 Drop 20 | . . . . . 8 12 Fire 51 | . 1 . . . 23 27 Melee . | . . . . . . . Ram 2 | . . . . . 1 1 Kick . | . . . . . . . Crush . | . . . . . . . Escape Stasis . | . . . . . . . Rewire . | . . . . . . . Trap . | . . . . . . . Miscellaneous . | . . . . . . . Route ------- -11/Scrapyard -10/Materials -10/Mines -10/Exiles -9/Mines -8/Materials (discovered 2 exits: *Fac x2) -7/Factory History --------- Turn | Location | Event 19 | -11/Scrapyard | Discovered new exit (range 15) 50 | -11/Scrapyard | Entered Materials 150 | -10/Materials | Discovered new exit (range 7) 151 | -10/Materials | Met 8R-AWN 157 | -10/Materials | Entered Mines 158 | -10/Mines | Followed 8R-AWN into the Mines 194 | -10/Mines | Learned 4 Materials zone layouts 264 | -10/Mines | Discovered new exit (range 5) 268 | -10/Mines | Entered Exiles 302 | -10/Exiles | Build established: Mutant 303 | -10/Exiles | Welcomed by 8R-AWN 326 | -10/Exiles | Met EX-HEX 369 | -10/Exiles | Met EX-BIN 388 | -10/Exiles | Aligned with FarCom system 389 | -10/Exiles | Given EX-Vault access code 426 | -10/Exiles | Opened EX-Vault 431 | -10/Exiles | Found Prototype Ballistic Gun 434 | -10/Exiles | Identified AWS/Gauss 465 | -10/Exiles | Warned to stay clear of 0b10 Research branches 493 | -10/Exiles | Met EX-DEC 498 | -10/Exiles | Learned location of Zion (-7) 543 | -10/Exiles | Learned about 8R-AWN's background 565 | -10/Exiles | Discovered new exit (range 14) 578 | -10/Exiles | Left Exiles lab with AWS/Gauss 578 | -10/Exiles | Entered Mines 584 | -9/Mines | Learned location of 1 exit from Proximity Caves 585 | -9/Mines | Identified exit to Materials 902 | -9/Mines | Entered Materials 902 | -8/Materials | Evolved 4 slots: Propulsion x1, Utility x1, Weapon x2 903 | -8/Materials | Identified exit to Factory 1246 | -8/Materials | Build established: Tank 1608 | -8/Materials | Discovered exit to Factory (range 10) 1626 | -8/Materials | Destroyed 7 combat bots 1637 | -8/Materials | Entered Factory 1637 | -7/Factory | Evolved 2 slots: Power x1, Utility x1 1727 | -7/Factory | Build established: Skirmisher 2042 | -7/Factory | Destroyed 7 combat bots 2122 | -7/Factory | Build established: Hacker-Skirmisher 2347 | -7/Factory | Core integrity fell below 50% 2358 | -7/Factory | Core integrity fell below 20% 2384 | -7/Factory | Destroyed by G-47 Trooper with Particle Gun Last Messages --------------- Power failure, Lgt. Nuclear Core shutdown. Broken Remote Datajack destroyed. Critical hit (Burn: +37). U-05 Engineer builds a Wall. System Shield destroyed. G-50 Soldier destroyed. K-01 Serf collects debris. Adv. Assault Cannon destroyed. K-01 Serf collects debris. Overheating: Lgt. Nuclear Core damaged (-4). Discarded Adv. Targeting Computer. Power failure, Lgt. Nuclear Core shutdown. K-01 Serf collects debris. Lgt. Nuclear Core destroyed. M-28 Smith repairs Imp. Heat Sink. M-28 Smith repairs Aluminum Leg. K-01 Serf collects debris. M-13 Machinist repairs G-47 Trooper. K-01 Serf collects debris. Critical hit (Burn: +37). Map ----- +----------------------------------------------------+ | ????????? #^ %"""""" # #??? | | ?????? """"""""" # """""" ##############??? | | ????# + """ #???????????????? | | ????????""""""""" # """""" #???????????????? | | ????# # """""" #???????????????? | | ??????" " # """"""% #???????????????? | | ??????"Y" ! ! # #???????????????? | | ???????"" ] # #########???????? | | ???????############## ????? | | ????????????????????# %% #########???????? | | ????????????????????# r #???????????????? | | ?????????????????"??# ###/#######????????????? | | ?????????????????R"?# # %% #????????????? | | ??????????????????" # u# """ #????????????? | | ??????????????????? # # """ #????????????? | | ????????????????????/r # """ #????????????? | | ????????????????????# gg# "" #????????????? | | ????????????????????#u g # ] "" #????????????? | | ????????????????????#a # ]] #????????????? | | ????????????????????# # ]] #????????????? | | ????????????????????# ##############?????????? | | ????????????????????# # #?????????? | | ????????????????????# # #?????????? | | ????????????????????# + #?????????? | | ????????????????????# # #?????????? | | ????????????????????# @# #?????????? | | ????????????????????# u # #?????????? | | ????????????????????# # #?????????? | | ????????????????????# g # #?????????? | | ????????????????????# # #?????????? | | ???????????????????##r g # #?????????? | | ???????????????????##% mm # #?????????? | | ????????????????????# k% # ! #?????????? | | ????????????????????# % #############??????????? | | ???????????????????? % #??????????????????????? | | ??????????????????? #??????????????????????? | | ??????????????????? #??????????????????????? | | ?????????????????? % #??????????????????????? | | ????????????????? % % #??????????????????????? | | ?????????????????#####+####??????????????????????? | | ????????????????????? ??????????????????????????? | | ????????????????????? ??????????????????????????? | | ?????????????????????? ??????????????????????????? | | ?????????????????????????????????????????????????? | | ?????????????????????????????????????????????????? | | ?????????????????????????????????????????????????? | | ?????????????????????????????????????????????????? | | ?????????????????????????????????????????????????? | | ?????????????????????????????????????????????????? | | ?????????????????????????????????????????????????? | +----------------------------------------------------+ Best States ------------- Heat Dissipation 34 Energy Generation 23 Energy Capacity 335 Matter Stores 300 Matter Capacity 300 Sight Range 16 Terrain Scan Density 10 Armor Coverage 600 Utility Shielding 66 Evasion (%) 40 Targeting Accuracy 8 Offensive Hacking 10 Defensive Hacking 10 Item Schematics ----------------- Flak Cannon | -8/Materials | Scanalyzed Robot Schematics ------------------ None Fabricated ------------ Nothing Alien Tech Used ----------------- None Achievements -------------- GoHome() Challenges ------------ None Game ------ Seed MolecularRiotSink Manual? 0 Play Time 00:35:28 Cumulative 4.6 hours Start 2024.04.06 @ 20:50:39 End 2024.04.06 @ 21:25:23 Sessions 1 Manual Loads 0 Difficulty Rogue Special Mode None Game No. 7 Rogue 7 Adventurer 0 Explorer 0 Win Type - Total 0 Types 0/0/0/0/0/0/0/0/0 Lore% 10 Gallery% 10 Achievement% 8 Wizard Run 0 Options --------- Layout 1 ASCII 0 Keyboard 0 Movement Arrows Keybinds 0 Fullscreen 1 Font 24/Smallcaps Map View 50x35 Zoom Use 0% Tactical HUD 0 Map Filters NONE Filters NONE Steam 1 RUN: d0e554d9-a862-4e4d-a4b4-61389ddf6b73